{"text_format":"1","workbook":"xlsx","n_sheets":2,"sheets":["Pasiūlymas","Subtiekėjai ir priedai"],"not_rendered":{"charts":0,"images":0,"macros":1,"external_links":0,"defined_names":0,"comments":0,"pivot_tables":0},"unopened":[],"bounds":{"document_bytes":16777216,"sheet_cells":100000,"rows_first":2000,"rows_last":500,"rows_between":2000,"halvings":0,"cell_chars":16384,"cell_head_chars":4096},"cells_cut":0,"cells_raw":0,"read":"whole","date_system":"1900"}

{"sheet":"Pasiūlymas","index":0,"n_rows":455,"n_cols":8,"rows_kept":455,"cut":false,"hidden":false,"merged":[[27,0,27,5],[28,0,28,5],[24,0,24,5],[25,0,25,5],[26,0,26,5],[18,0,18,1],[18,2,18,5],[23,0,23,5],[19,0,19,1],[20,0,20,1],[19,2,19,5],[20,2,20,5],[22,0,22,5],[29,0,29,2],[29,3,29,5],[11,0,11,1],[11,2,11,5],[12,0,12,1],[12,2,12,5],[13,0,13,1],[13,2,13,5],[14,0,14,1],[14,2,14,5],[15,0,15,1],[15,2,15,5],[16,0,16,1],[16,2,16,5],[17,0,17,1],[17,2,17,5]]}
[]
["PIRKIMO SĄLYGŲ PRIEDAS \"PASIŪLYMŲ FORMA\""]
[]
["VIENKARTINĖS PAGALBINĖS MEDICININĖS PRIEMONĖS "]
[]
["Kam:","VšĮ LSMU Kauno ligoninė"]
[]
["Data:","2022-08-30"]
["Nr.:",591167]
["Vieta:","Kaunas"]
[]
["Tiekėjo pavadinimas / Ūkio subjektų grupės nariai:",null,"UAB \"Skirgesa\""]
["Tiekėjo kodas (-ai):",null,234449420]
["Tiekėjo adresas (-ai):",null,"Energetikų g. 8, Kaunas"]
["Tiekėjo PVM mokėtojo kodas(-ai):",null,"LT344494219"]
["Tiekėjo / Ūkio subjektų grupės atsakingo partnerio sąskaitos numeris, banko pavadinimas ir banko kodas (-ai):",null,"A/s. LT41 7300 0100 7979 6368,\nAB „Swedbank“, banko kodas 73000"]
["Asmens atsakingo už pasiūlymą vardas, pavardė:",null,"Viešųjų pirkimų specialistė\nDovilė Andrijauskaitė"]
["Asmens atsakingo už pasiūlymą telefono numeris, el. pašto adresas:",null,"8 37 478242, info@skirgesa.lt"]
["Tiekėjo / Ūkio subjektų grupės, laimėjimo atveju, pasirašančio sutartį asmens vardas, pavardė, pareigos:",null,"Direktorius Skirmantas Akelis"]
["Tiekėjo / Ūkio subjektų grupės, laimėjimo atveju, už sutarties vykdymą atsakingo asmens vardas, pavardė, telefono numeris, elektroninio pašto adresas:",null,"Direktorius Skirmantas Akelis\n8 37 478242, info@skirgesa.lt"]
["(1) Tiekėjo / Ūkio subjektų grupės narių, (2) ūkio subjektų, kurių pajėgumais remiamasi, ir (3) jei pašalinimo pagrindai taikomi visiems subtiekėjams - subtiekėjų, kolegialaus priežiūros organo (Stebėtojų tarybos) ir (ar) kolegialaus valdymo organo (Valdybos) narių sąrašas (jei sudaryta) ir (ar) asmuo, kuriam suteikti VPĮ 46 str. 2 d. 2 p. numatyti įgaliojimai",null,"_",null,null,null,{"$f":"IF((SUMPRODUCT(--(C21=\"\"))>0), \"Privaloma užpildyti, kai taikomi pašalinimo pagrindai\", \"\")","v":""}]
[]
["Tiekėjo patvirtinimai:"]
["1. Šiuo pasiūlymu pažymime, kad sutinkame su visomi pirkimo sąlygomis, nustatytomis:"]
["1.1. viešojo pirkimo dokumentuose"]
["1.2. kituose pirkimo dokumentuose (jų paaiškinimuose, papildymuose)."]
["2. Patvirtiname, kad informacija ir duomenys, pateikti pasiūlyme, yra teisingi ir apima viską, ko reikia tinkamam sutarties įvykdymui"]
["3. Patvirtiname, kad jei pasiūlyme nenurodyti kolegialaus priežiūros/valdymo organų nariai, šie organai juridiniuose asmenyse nėra sudaryti (taikoma, kai pirkimo dokumentuose nustatyti pašalinimo pagrindai)."]
["4. Pasiūlymas galioja iki termino, nustatyto pirkimo dokumentuose."]
["5. Tais atvejais, kai pagal galiojančius teisės aktus tiekėjui nereikia mokėti PVM, jis nurodo priežastis, dėl kurių PVM nemoka:"]
[]
["1. DALIS","PLOVIMO SISTEMA ARTROSKOPIJAI"]
[]
["Tiekėjo pasiūlymas:"]
["Nr.","Pavadinimas","Kiekis","Mato vienetas","Įkainis be PVM, Eur","Suma be PVM, Eur","Siūlomos prekės, pavadinimas, gamintojas, kodas","Tiekėjo siūlomi parametrai ir parametrą pagrindžiantys dokumentai"]
["1.","Plovimo sistema artroskopijai"]
["1.1.","Plovimo sistema artroskopijai",3500,"vnt",1.84,{"$f":"IF(ISBLANK(E37),\"\", PRODUCT(C37,E37))","v":6440},"T.U.R. / Arthroscopy Set, Plasti-med Medical Plastic Products Ind. Tic. Ltd. Sti., 165 111"]
["1.1.1.","Ilgis 2m (±15cm)",null,null,null,null,null,"Ilgis 2.15m Žr. „KONFIDENCIALU_Katalogai“ .pdf, psl. 1, 2."]
[null,null,null,null,"Suma be PVM",{"$f":"IF((COUNT(C37:C38)<>COUNT(F37:F38)),\"\", SUM(F37:F38))","v":6440},{"$f":"IF((COUNT(C37:C38)<>COUNT(F37:F38)),\"Neužpildytos visų objektų kainos\", \"\")","v":""}]
[null,null,null,null,"PVM suma",322]
[null,null,null,null,"Suma su PVM",{"$f":"IF(ISBLANK(F40), \"\", SUM(F39:F40))","v":6762}]
[]
[]
[]
[]
[]
[]
["3. DALIS","PRAILGINIMO LINIJA "]
[]
["Tiekėjo pasiūlymas:"]
["Nr.","Pavadinimas","Kiekis","Mato vienetas","Įkainis be PVM, Eur","Suma be PVM, Eur","Siūlomos prekės, pavadinimas, gamintojas, kodas","Tiekėjo siūlomi parametrai ir parametrą pagrindžiantys dokumentai"]
["3.","Prailginimo linija "]
["3.1.","Prailginimo linija 10 - 15 cm ilgio su 3 beadatiniais konektoriais ir 3 skirtingų spalvų spaustukais",500,"vnt",3.8,{"$f":"IF(ISBLANK(E53),\"\", PRODUCT(C53,E53))","v":1900},"Extention line for infusion, Cair LGL SA, PY3x01NCM"]
["3.1.1.","Prailginimo linija su skaidriu konektoriumi, tinkančiu leisti vaistams, kraujui ir kraujo produktams, biologiniams skysčiams ir lipidams, chemoterepiniams vaistams",null,null,null,null,null,"Prailginimo linija su skaidriu konektoriumi, tinkančiu leisti vaistams, kraujui ir kraujo produktams, biologiniams skysčiams ir lipidams, chemoterepiniams vaistams                                         Žr. „KONFIDENCIALU_Katalogai“ .pdf, psl. 11-14."]
["3.1.2.","Nėra latekso, metalinių dalių, vožtuvo",null,null,null,null,null,"Nėra latekso, metalinių dalių, vožtuvo                                               Žr. „KONFIDENCIALU_Katalogai“ .pdf, psl. 11-14."]
["3.1.3.","Lygus kontaktinis valomasisi paviršius",null,null,null,null,null,"Lygus kontaktinis valomasisi paviršius                                                         Žr. „KONFIDENCIALU_Katalogai“ .pdf, psl. 11-14."]
["3.1.4.","Konstrukcija - prasiskirianti membrana su vidine kaniule",null,null,null,null,null,"Konstrukcija - prasiskirianti membrana su vidine kaniule                             Žr. „KONFIDENCIALU_Katalogai“ .pdf, psl. 11-14."]
["3.1.5.","Gali būti nepertraukiamai naudojamas iki 7 parų",null,null,null,null,null,"Gali būti nepertraukiamai naudojamas iki 7 parų                                 Žr. „KONFIDENCIALU_Katalogai“ .pdf, psl. 11-14."]
["3.1.6.","Neutralaus poslinkio - 0,004ml",null,null,null,null,null,"Neutralaus poslinkio - 0,004ml                      Žr. „KONFIDENCIALU_Katalogai“ .pdf, psl. 11-14."]
["3.1.7.","Tėkmė ≥ 350 ml/min",null,null,null,null,null,"Tėkmė 600 ml/min                                      Žr. „KONFIDENCIALU_Katalogai“ .pdf, psl. 11-14."]
["3.1.8.","Svoris ≤ 1 g",null,null,null,null,null,"Svoris 1 g                                                   Žr. „KONFIDENCIALU_Katalogai“ .pdf, psl. 11-14."]
["3.1.9.","Liekamasis tūris ≤ 0,08 ml",null,null,null,null,null,"Liekamasis tūris 0.049 ml                          Žr. „KONFIDENCIALU_Katalogai“ .pdf, psl. "]
["3.1.10.","Prailginimo linijos storis 2,5mm (±0,01mm)",null,null,null,null,null,"Prailginimo linijos storis 2,5mm                    Žr. „KONFIDENCIALU_Katalogai“ .pdf, psl. 11-14."]
["3.1.11.","10 - 15 cm ilgio su 3 beadatiniais konektoriais ir 3 skirtingų spalvų spaustukais",null,null,null,null,null,"10 cm ilgio su 3 beadatiniais konektoriais ir 3 skirtingų spalvų spaustukais                                                       Žr. „KONFIDENCIALU_Katalogai“ .pdf, psl. 11-14."]
[null,null,null,null,"Suma be PVM",{"$f":"IF((COUNT(C53:C64)<>COUNT(F53:F64)),\"\", SUM(F53:F64))","v":1900},{"$f":"IF((COUNT(C53:C64)<>COUNT(F53:F64)),\"Neužpildytos visų objektų kainos\", \"\")","v":""}]
[null,null,null,null,"PVM suma",95]
[null,null,null,null,"Suma su PVM",{"$f":"IF(ISBLANK(F66), \"\", SUM(F65:F66))","v":1995}]
[]
[]
[]
["4. DALIS","MONITORINGO LINIJA CO2 MATAVIMUI"]
[]
["Tiekėjo pasiūlymas:"]
["Nr.","Pavadinimas","Kiekis","Mato vienetas","Įkainis be PVM, Eur","Suma be PVM, Eur","Siūlomos prekės, pavadinimas, gamintojas, kodas","Tiekėjo siūlomi parametrai ir parametrą pagrindžiantys dokumentai"]
["4.","Monitoringo linija CO2 matavimui"]
["4.1.","Monitoringo linija",200,"vnt",0.82,{"$f":"IF(ISBLANK(E76),\"\", PRODUCT(C76,E76))","v":164},"Gas sampling line, Altera Meditera, AL-0512"]
["4.1.1.","Vienkartinė, kliniškai švari",null,null,null,null,null,"Vienkartinė, kliniškai švari                  Žr. „KONFIDENCIALU_Katalogai“ .pdf, psl. 15."]
["4.1.2.","Vamzdelis skaidrus, lankstus",null,null,null,null,null,"Vamzdelis skaidrus, lankstus Žr. „KONFIDENCIALU_Katalogai“ .pdf, psl. 15."]
["4.1.3.","Suspaudus vamzdelį neturi likti likutinės deformacijos žymių",null,null,null,null,null,"Suspaudus vamzdelį neturi likti likutinės deformacijos žymių Žr. „KONFIDENCIALU_Katalogai“ .pdf, psl. 15."]
["4.1.4.","Abiem užsukamomis vyriškos formos Luer tipo jungtimis",null,null,null,null,null,"Abiem užsukamomis vyriškos formos Luer tipo jungtimis Žr. „KONFIDENCIALU_Katalogai“ .pdf, psl. 15."]
["4.1.5.","Ilgis ne mažiau 3 m",null,null,null,null,null,"Ilgis 3 m Žr. „KONFIDENCIALU_Katalogai“ .pdf, psl. 15."]
["4.2.","Monitoringo linija",40,"vnt",0.82,{"$f":"IF(ISBLANK(E82),\"\", PRODUCT(C82,E82))","v":32.799999999999997},"Gas sampling line, Altera Meditera, Al-0513"]
["4.2.1.","Vienkartinė, kliniškai švari",null,null,null,null,null,"Vienkartinė, kliniškai švari Žr. „KONFIDENCIALU_Katalogai“ .pdf, psl. 16."]
["4.2.2.","Vamzdelis skaidrus, minkštas, lankstus",null,null,null,null,null,"Vamzdelis skaidrus, lankstus Žr. „KONFIDENCIALU_Katalogai“ .pdf, psl. 16. "]
["4.2.3.","Suspaudus vamzdelį neturi likti likutinės deformacijos žymių",null,null,null,null,null,"Suspaudus vamzdelį neturi likti likutinės deformacijos žymių Žr. „KONFIDENCIALU_Katalogai“ .pdf, psl. 16."]
["4.2.4.","Viena vyriškos formos Luer tipo jungtimi, kita moteriškos formos jungtimi",null,null,null,null,null,"Viena vyriškos formos Luer tipo jungtimi, kita moteriškos formos jungtimi Žr. „KONFIDENCIALU_Katalogai“ .pdf, psl. 16."]
["4.2.5.","Ilgis ne mažiau 3m",null,null,null,null,null,"Ilgis 3mŽr. „KONFIDENCIALU_Katalogai“ .pdf, psl. 16."]
[null,null,null,null,"Suma be PVM",{"$f":"IF((COUNT(C76:C87)<>COUNT(F76:F87)),\"\", SUM(F76:F87))","v":196.8},{"$f":"IF((COUNT(C76:C87)<>COUNT(F76:F87)),\"Neužpildytos visų objektų kainos\", \"\")","v":""}]
[null,null,null,null,"PVM suma",{"$f":"F88*1.05-F88","v":9.84}]
[null,null,null,null,"Suma su PVM",{"$f":"IF(ISBLANK(F89), \"\", SUM(F88:F89))","v":206.64}]
[]
[]
[]
["5. DALIS","4 KRANELIŲ BLOKAS SU 5 BEADATINIAIS KONEKTORIAIS"]
[]
["Tiekėjo pasiūlymas:"]
["Nr.","Pavadinimas","Kiekis","Mato vienetas","Įkainis be PVM, Eur","Suma be PVM, Eur","Siūlomos prekės, pavadinimas, gamintojas, kodas","Tiekėjo siūlomi parametrai ir parametrą pagrindžiantys dokumentai"]
["5.","4 kranelių blokas su 5 beadatiniais konektoriais"]
["5.1.","4 kranelių blokas su 5 beadatiniais konektoriais",20,"vnt",7.6,{"$f":"IF(ISBLANK(E99),\"\", PRODUCT(C99,E99))","v":152},"Manifolds with holder, Cair LGL SA, RM4000NCA"]
["5.1.1.","Neišardomas kranelių blokas su prisukamu laikikliu prie lašelinės stovo",null,null,null,null,null,"Neišardomas kranelių blokas su prisukamu laikikliu prie lašelinės stovo                                                      Žr. „KONFIDENCIALU_Katalogai“ .pdf, psl. 17-20."]
["5.1.2.","Konektoriai, tinkantys leisti vaistams, kraujui ir kraujo produktams, biologiniams skysčiams ir lipidams, chemoterepiniams vaistams",null,null,null,null,null,"Konektoriai, tinkantys leisti vaistams, kraujui ir kraujo produktams, biologiniams skysčiams ir lipidams, chemoterepiniams vaistams                                                     Žr. „KONFIDENCIALU_Katalogai“ .pdf, psl. 17-20."]
["5.1.3.","Nėra latekso, metalinių dalių, vožtuvo",null,null,null,null,null,"Nėra latekso, metalinių dalių, vožtuvo                                                      Žr. „KONFIDENCIALU_Katalogai“ .pdf, psl. 17-20."]
["5.1.4.","Lygus kontaktinis valomasis paviršius",null,null,null,null,null,"Lygus kontaktinis valomasis paviršius                                                    Žr. „KONFIDENCIALU_Katalogai“ .pdf, psl. 17-20."]
["5.1.5.","Konstrukcija - prasiskirianti membrana su vidine kaniule",null,null,null,null,null,"Konstrukcija - prasiskirianti membrana su vidine kaniule                        Žr. „KONFIDENCIALU_Katalogai“ .pdf, psl. 17-20."]
["5.1.6.","Gali būti nepertraukiamai naudojamas iki 7 parų",null,null,null,null,null,"Gali būti nepertraukiamai naudojamas iki 7 parų                                 Žr. „KONFIDENCIALU_Katalogai“ .pdf, psl. 17-20."]
["5.1.7.","Neutralaus poslinkio - 0,004ml",null,null,null,null,null,"Neutralaus poslinkio - 0,004ml                      Žr. „KONFIDENCIALU_Katalogai“ .pdf, psl. 17-20."]
["5.1.8.","Tėkmė ≥ 350 ml/min",null,null,null,null,null,"Tėkmė 350 ml/min                                  Žr. „KONFIDENCIALU_Katalogai“ .pdf, psl. 17-20."]
["5.1.9.","Svoris ≤ 1 g",null,null,null,null,null,"Svoris 1 g                                              Žr. „KONFIDENCIALU_Katalogai“ .pdf, psl. 17-20."]
["5.1.10.","Liekamasis tūris ≤ 0,05 ml",null,null,null,null,null,"Liekamasis tūris  0,049 ml                        Žr. „KONFIDENCIALU_Katalogai“ .pdf, psl. 17-20."]
[null,null,null,null,"Suma be PVM",{"$f":"IF((COUNT(C99:C109)<>COUNT(F99:F109)),\"\", SUM(F99:F109))","v":152},{"$f":"IF((COUNT(C99:C109)<>COUNT(F99:F109)),\"Neužpildytos visų objektų kainos\", \"\")","v":""}]
[null,null,null,null,"PVM suma",7.6]
[null,null,null,null,"Suma su PVM",{"$f":"IF(ISBLANK(F111), \"\", SUM(F110:F111))","v":159.6}]
[]
[]
[]
[]
[]
[]
["9. DALIS","AMBU MAIŠAI  VIENKARTINIO NAUDOJIMO"]
[]
["Tiekėjo pasiūlymas:"]
["Nr.","Pavadinimas","Kiekis","Mato vienetas","Įkainis be PVM, Eur","Suma be PVM, Eur","Siūlomos prekės, pavadinimas, gamintojas, kodas","Tiekėjo siūlomi parametrai ir parametrą pagrindžiantys dokumentai"]
["9.","Ambu maišai  vienkartinio naudojimo"]
["9.1.","Ambu maišas (rinkinys) su kauke vienkartinio naudojimo, suaugusiems",500,"vnt",8.75,{"$f":"IF(ISBLANK(E124),\"\", PRODUCT(C124,E124))","v":4375},"Disposable resuscitator, Plastimed, 130 255"]
["9.1.1.","Sukomplektuotas naudojimui naudojimui",null,null,null,null,null,"Sukoplektuotas naudojimui Žr. „KONFIDENCIALU_Katalogai“ .pdf, psl. 28.                          "]
["9.1.2.","Gaminio sudėtyje nėra latekso",null,null,null,null,null,"Gaminio sudėryje nėra latekso Žr. „KONFIDENCIALU_Katalogai“ .pdf, psl. 30."]
["9.1.3.","Su 360 laipsnių kampu besisukančia paciento jungtimi",null,null,null,null,null,"Su 360 laipsnių kampu besisukančia paciento jungtimi Žr. „KONFIDENCIALU_Katalogai“ .pdf, psl. 29."]
["9.1.4.","Deguonies vamzdelis- ne lygiasienis, su specialiu vidiniu profiliu, atsijungia nuo rezervinio maišo, jungtis kūginė",null,null,null,null,null,"Deguonies vamzdelis - ne lygiasienis, su specialiu vidiniu profiliu, atsijungia nuo rezervinio maišo, jungtis kūginė Žr. „KONFIDENCIALU_Katalogai“ .pdf, psl. 28, 31."]
["9.1.5.","Komplekto sudėtis: 5 dydžio kaukė, ne mažiau kaip 2 m deguonies vamzdelis, 1500-1700ml talpos maišas, papildomas rezervuaras deguoniui",null,null,null,null,null,"Koplekto sudėtis: 5 dydžio kaukė, 2 m deguonies vamzdelis 1500ml talpos maišas, papildomas rezervuaras deguonimi Žr. „KONFIDENCIALU_Katalogai“ .pdf, psl. 28, 29."]
["9.2.","Ambu maišas (rinkinys) su kauke vienkartinio naudojimo, naujagimiams",50,"vnt",9.1,{"$f":"IF(ISBLANK(E130),\"\", PRODUCT(C130,E130))","v":455},"Disposable resuscitator, Plastimed, 130 253"]
["9.2.1.","Sukomplektuotas naudojimui naudojimui",null,null,null,null,null,"Sukomplektuotas naudojimui Žr. „KONFIDENCIALU_Katalogai“ .pdf, psl. 28.         "]
["9.2.2.","Gaminio sudėtyje nėra latekso",null,null,null,null,null,"Gaminio sudėryje nėra latekso Žr. „KONFIDENCIALU_Katalogai“ .pdf, psl. 30."]
["9.2.3.","Su 360 laipsnių kampu besisukančia paciento jungtimi",null,null,null,null,null,"Su 360 laipsnių kampu besisukančia paciento Žr. „KONFIDENCIALU_Katalogai“ .pdf, psl. 29.    "]
["9.2.4.","Deguonies vamzdelis- ne lygiasienis, su specialiu vidiniu profiliu, atsijungia nuo rezervinio maišo, jungtis kūginė",null,null,null,null,null,"Deguonies vamzdelis- ne lygiasienis, su specialiu vidiniu profiliu, atsijungia nuo rezervinio maišo, jungtis kūginė Žr. „KONFIDENCIALU_Katalogai“ .pdf, psl. 28, 31."]
["9.2.5.","Komplekto sudėtis: 3 dydžio kaukė, ne mažiau kaip 2 m deguonies vamzdelis, 280-300ml talpos maišas, numetimo vožtuvas atsidarantis esant 40cm H2O stulpelio, papildomas rezervuaras deguoniui",null,null,null,null,null,"Komplekto sudėtis: 3 dydžio kaukė, 2 m deguonies vamzdelis, 280ml talpos maišas, numetimo vožtuvas atsidarantis esant 40cm H2O stulpelio, papildomas rezervuaras Žr. „KONFIDENCIALU_Katalogai“ .pdf, psl. 28, 29."]
[null,null,null,null,"Suma be PVM",{"$f":"IF((COUNT(C124:C135)<>COUNT(F124:F135)),\"\", SUM(F124:F135))","v":4830},{"$f":"IF((COUNT(C124:C135)<>COUNT(F124:F135)),\"Neužpildytos visų objektų kainos\", \"\")","v":""}]
[null,null,null,null,"PVM suma",{"$f":"F136*1.05-F136","v":241.5}]
[null,null,null,null,"Suma su PVM",{"$f":"IF(ISBLANK(F137), \"\", SUM(F136:F137))","v":5071.5}]
[]
[]
[]
["10. DALIS","AMBU MAIŠAI DAUGKARTINIO NAUDOJIMO"]
[]
["Tiekėjo pasiūlymas:"]
["Nr.","Pavadinimas","Kiekis","Mato vienetas","Įkainis be PVM, Eur","Suma be PVM, Eur","Siūlomos prekės, pavadinimas, gamintojas, kodas","Tiekėjo siūlomi parametrai ir parametrą pagrindžiantys dokumentai"]
["10.","Ambu maišai daugkartinio naudojimo"]
["10.1.","Ambu maišas (rinkinys) su kauke daugkartinio naudojimo, suaugusiems",10,"vnt",29.5,{"$f":"IF(ISBLANK(E147),\"\", PRODUCT(C147,E147))","v":295},"Reusable Manual resuscitator, Plastimed, 130252"]
["10.1.1.","Sukomplektuotas naudojimui naudojimui",null,null,null,null,null,"Sukompletuotas naudojimui Žr. „KONFIDENCIALU_Katalogai“ .pdf, psl. 32."]
["10.1.2.","Gaminio sudėtyje nėra latekso",null,null,null,null,null,"Gaminio sudėtyje nėra latekso  Žr. „KONFIDENCIALU_Katalogai“ .pdf, psl. 34, "]
["10.1.3.","Silikoninis su 360 laipsnių kampu besisukančia paciento jungtimi",null,null,null,null,null,"Silikoniis su 360 laipsnių kampu besisukančia paciento jungtimi  Žr. „KONFIDENCIALU_Katalogai“ .pdf, psl. 33."]
["10.1.4.","Deguonies vamzdelis- ne lygiasienis, su specialiu vidiniu profiliu, atsijungia nuo rezervinio maišo, jungtis kūginė",null,null,null,null,null,"Deguonies vamzdelis- ne lygiasienis, su specialiu vidiniu profiliu, atsijungia nuo rezervinio maišo, jungtis kūginė  Žr. „KONFIDENCIALU_Katalogai“ .pdf, psl. 32, 35."]
["10.1.5.","Komplekto sudėtis: 5 dydžio kaukė, ne mažiau kaip 2 m deguonies vamzdelis, 1500 ml (± 10ml) talpos maišas, papildomas rezervuaras deguoniui",null,null,null,null,null,"Komplekto sudėtis: 5 dydžio kaukė,  2 m deguonies vamzdelis, 1500 ml talpos maišas, papildomas rezervuaras  Žr. „KONFIDENCIALU_Katalogai“ .pdf, psl. 32, 33."]
["10.2.","Ambu maišas (rinkinys) su kauke daugkartinio naudojimo, naujagimiams",5,"vnt",29.5,{"$f":"IF(ISBLANK(E153),\"\", PRODUCT(C153,E153))","v":147.5},"Reusable Manual resusicitator, Plastimed, 130250"]
["10.2.1.","Sukomplektuotas naudojimui naudojimui",null,null,null,null,null,"Sukompletuotas naudojimui  Žr. „KONFIDENCIALU_Katalogai“ .pdf, psl. 32."]
["10.2.2.","Gaminio sudėtyje nėra latekso",null,null,null,null,null,"Gaminio sudėtyje nėra latekso  Žr. „KONFIDENCIALU_Katalogai“ .pdf, psl. 34."]
["10.2.3.","Silikoninis su 360 laipsnių kampu besisukančia paciento jungtimi",null,null,null,null,null,"Silikoniis su 360 laipsnių kampu besisukančia paciento jungtimi  Žr. „KONFIDENCIALU_Katalogai“ .pdf, psl. 33."]
["10.2.4.","Deguonies vamzdelis- ne lygiasienis, su specialiu vidiniu profiliu, atsijungia nuo rezervinio maišo, jungtis kūginė",null,null,null,null,null,"Deguonies vamzdelis- ne lygiasienis, su specialiu vidiniu profiliu, atsijungia nuo rezervinio maišo, jungtis kūginė  Žr. „KONFIDENCIALU_Katalogai“ .pdf, psl. 32, 35."]
["10.2.5.","Komplekto sudėtis: 3 dydžio kaukė, ne mažiau kaip 2 m deguonies vamzdelis, 280 ml (± 5ml) talpos maišas, numetimo vožtuvas atsidarantis esant 40cm H2O stulpelio, papildomas rezervuaras deguoniui",null,null,null,null,null,"Komplekto sudėtis: 3 dydžio kaukė,  2 m deguonies vamzdelis, 280 ml talpos maišas,  numetimo vožtuvas atsidarantis esant 40cm H2O stulpelio, papildomas rezervuaras deguonimi  Žr. „KONFIDENCIALU_Katalogai“ .pdf, psl. 32, 33."]
[null,null,null,null,"Suma be PVM",{"$f":"IF((COUNT(C147:C158)<>COUNT(F147:F158)),\"\", SUM(F147:F158))","v":442.5},{"$f":"IF((COUNT(C147:C158)<>COUNT(F147:F158)),\"Neužpildytos visų objektų kainos\", \"\")","v":""}]
[null,null,null,null,"PVM suma",{"$f":"F159*1.05-F159","v":22.125}]
[null,null,null,null,"Suma su PVM",{"$f":"IF(ISBLANK(F160), \"\", SUM(F159:F160))","v":464.625}]
[]
[]
[]
[]
[]
[]
["12. DALIS","KINTAMO ILGIO PACIENTO JUNGTIS DIRBTINEI VENTILIACIJAI PER TRACHEOSTOMĄ"]
[]
["Tiekėjo pasiūlymas:"]
["Nr.","Pavadinimas","Kiekis","Mato vienetas","Įkainis be PVM, Eur","Suma be PVM, Eur","Siūlomos prekės, pavadinimas, gamintojas, kodas","Tiekėjo siūlomi parametrai ir parametrą pagrindžiantys dokumentai"]
["12.","Kintamo ilgio paciento jungtis dirbtinei ventiliacijai per tracheostomą"]
["12.1.","Kintamo ilgio paciento jungtis dirbtinei ventiliacijai per tracheostomą",300,"vnt",0.53,{"$f":"IF(ISBLANK(E173),\"\", PRODUCT(C173,E173))","v":159},"Catheter Mounts, Altera Meditera, AL-17300"]
["12.1.1.","Chromatinės armonikos dizaino, kas užtikrina reikiamą jungtelės padėtį",null,null,null,null,null,"Chromatinės armonikos dizaino, kas užtikrina reikiamą jungtelės padėtį  Žr. „KONFIDENCIALU_Katalogai“ .pdf, psl. 36."]
["12.1.2.","Kintamo ilgio nuo 70-150 mm",null,null,null,null,null,"Kintamo ilgio nuo 70-150 mm  Žr. „KONFIDENCIALU_Katalogai“ .pdf, psl. 37."]
["12.1.3.","22F su šarnyrine jungtimi 22M/15F",null,null,null,null,null,"22F su šarnyrine jungtimi 22M/15F  Žr. „KONFIDENCIALU_Katalogai“ .pdf, psl. 37."]
["12.1.4.","Turi „Flip top“ tipo dangtelį su angele atsiurbti.",null,null,null,null,null,"Turi „Flip top“ tipo dangtelį su angele atsiurbti  Žr. „KONFIDENCIALU_Katalogai“ .pdf, psl. 36."]
[null,null,null,null,"Suma be PVM",{"$f":"IF((COUNT(C173:C177)<>COUNT(F173:F177)),\"\", SUM(F173:F177))","v":159},{"$f":"IF((COUNT(C173:C177)<>COUNT(F173:F177)),\"Neužpildytos visų objektų kainos\", \"\")","v":""}]
[null,null,null,null,"PVM suma",{"$f":"F178*1.05-F178","v":7.9500000000000197}]
[null,null,null,null,"Suma su PVM",{"$f":"IF(ISBLANK(F179), \"\", SUM(F178:F179))","v":166.95}]
[]
[]
[]
[]
[]
[]
["20. DALIS","LARINGINĖ KAUKĖ PRIPUČIAMA SU PERTVARĖLĖMIS"]
[]
["Tiekėjo pasiūlymas:"]
["Nr.","Pavadinimas","Kiekis","Mato vienetas","Įkainis be PVM, Eur","Suma be PVM, Eur","Siūlomos prekės, pavadinimas, gamintojas, kodas","Tiekėjo siūlomi parametrai ir parametrą pagrindžiantys dokumentai"]
["20.","Laringinė kaukė pripučiama su pertvarėlėmis"]
["20.1.","Laringinė kaukė. N1",40,"vnt",14.75,{"$f":"IF(ISBLANK(E192),\"\", PRODUCT(C192,E192))","v":590}," Supreme airway, LMA Teleflex, 175010"]
["20.1.1.","Vienkartinė, sterili, pagaminta iš PVC ar lygiavertės medžiagos",null,null,null,null,null,"Vienkartinė, sterili, pagaminta iš PVC Žr. „KONFIDENCIALU_Katalogai“ .pdf, psl. 41, 43."]
["20.1.2.","Su reguliuojama pripučiama manžete, elipsės formos",null,null,null,null,null,"Su reguliuojama pripučiama manžete, elipsės formos Žr. „KONFIDENCIALU_Katalogai“ .pdf, psl. 43."]
["20.1.3.","Stabili, neužlinkstantis vamzdelis, specialiu kampu leidžiantis įvesti esant įvairioms galvos pozicijoms",null,null,null,null,null,"Stabili, neužlinkstantis vamzdelis, specialiu kampu leidžiantis įvesti esant įvairioms galvos pozicijoms Žr. „KONFIDENCIALU_Katalogai“ .pdf, psl. 43."]
["20.1.4.","2 angų technologija, stemplinė ir orofaringinė anga",null,null,null,null,null,"2 angų technologija, stemplinė ir orofaringinė anga Žr. „KONFIDENCIALU_Katalogai“ .pdf, psl. 42."]
["20.1.5.","Integruotas sukandimo blokatorius",null,null,null,null,null,"Integruotas sukandimo blokatorius  Žr. „KONFIDENCIALU_Katalogai“ .pdf, psl. 43."]
["20.1.6.","Padidinta, išgaubta PVC manžetė pagerintam prigludimui ir hermetiškumui su pertvarėlėmis nuo epigločio užkritimo",null,null,null,null,null,"Padidinta, išgaubta PVC manžetė pagerintam prigludimui ir hermetiškumui su pertvarėlėmis nuo epigločio užkritimo Žr. „KONFIDENCIALU_Katalogai“ .pdf, psl. 41-43."]
["20.2.","Laringinė kaukė. N2",40,"vnt",14.75,{"$f":"IF(ISBLANK(E199),\"\", PRODUCT(C199,E199))","v":590}," Supreme airway, LMA Teleflex, 175020"]
["20.2.1.","Vienkartinė, sterili, pagaminta iš PVC ar lygiavertės medžiagos",null,null,null,null,null,"Vienkartinė, sterili, pagaminta iš PVC Žr. „KONFIDENCIALU_Katalogai“ .pdf, psl. 41, 43. "]
["20.2.2.","Su reguliuojama pripučiama manžete, elipsės formos",null,null,null,null,null,"Su reguliuojama pripučiama manžete, elipsės formos Žr. „KONFIDENCIALU_Katalogai“ .pdf, psl. 43."]
["20.2.3.","Stabili, neužlinkstantis vamzdelis, specialiu kampu leidžiantis įvesti esant įvairioms galvos pozicijoms",null,null,null,null,null,"Stabili, neužlinkstantis vamzdelis, specialiu kampu leidžiantis įvesti esant įvairioms galvos pozicijoms Žr. „KONFIDENCIALU_Katalogai“ .pdf, psl. 43."]
["20.2.4.","2 angų technologija, stemplinė ir orofaringinė anga",null,null,null,null,null,"2 angų technologija, stemplinė ir orofaringinė anga Žr. „KONFIDENCIALU_Katalogai“ .pdf, psl. 42."]
["20.2.5.","Integruotas sukandimo blokatorius",null,null,null,null,null,"Integruotas sukandimo blokatorius  Žr. „KONFIDENCIALU_Katalogai“ .pdf, psl. 43."]
["20.2.6.","Padidinta, išgaubta PVC manžetė pagerintam prigludimui ir hermetiškumui su pertvarėlėmis nuo epigločio užkritimo",null,null,null,null,null,"Padidinta, išgaubta PVC manžetė pagerintam prigludimui ir hermetiškumui su pertvarėlėmis nuo epigločio užkritimo Žr. „KONFIDENCIALU_Katalogai“ .pdf, psl. 41-43."]
["20.3.","Laringinė kaukė. N2,5",40,"vnt",14.75,{"$f":"IF(ISBLANK(E206),\"\", PRODUCT(C206,E206))","v":590}," Supreme airway, LMA Teleflex, 175025"]
["20.3.1.","Vienkartinė, sterili, pagaminta iš PVC ar lygiavertės medžiagos",null,null,null,null,null,"Vienkartinė, sterili, pagaminta iš PVC Žr. „KONFIDENCIALU_Katalogai“ .pdf, psl. 41, 43. "]
["20.3.2.","Su reguliuojama pripučiama manžete, elipsės formos",null,null,null,null,null,"Su reguliuojama pripučiama manžete, elipsės formos Žr. „KONFIDENCIALU_Katalogai“ .pdf, psl. 43."]
["20.3.3.","Stabili, neužlinkstantis vamzdelis, specialiu kampu leidžiantis įvesti esant įvairioms galvos pozicijoms",null,null,null,null,null,"Stabili, neužlinkstantis vamzdelis, specialiu kampu leidžiantis įvesti esant įvairioms galvos pozicijoms Žr. „KONFIDENCIALU_Katalogai“ .pdf, psl. 43."]
["20.3.4.","2 angų technologija, stemplinė ir orofaringinė anga",null,null,null,null,null,"2 angų technologija, stemplinė ir orofaringinė anga Žr. „KONFIDENCIALU_Katalogai“ .pdf, psl. 42."]
["20.3.5.","Integruotas sukandimo blokatorius",null,null,null,null,null,"Integruotas sukandimo blokatorius  Žr. „KONFIDENCIALU_Katalogai“ .pdf, psl. 43."]
["20.3.6.","Padidinta, išgaubta PVC manžetė pagerintam prigludimui ir hermetiškumui su pertvarėlėmis nuo epigločio užkritimo",null,null,null,null,null,"Padidinta, išgaubta PVC manžetė pagerintam prigludimui ir hermetiškumui su pertvarėlėmis nuo epigločio užkritimoŽr. „KONFIDENCIALU_Katalogai“ .pdf, psl. 41-43."]
["20.4.","Laringinė kaukė. N3",200,"vnt",14.75,{"$f":"IF(ISBLANK(E213),\"\", PRODUCT(C213,E213))","v":2950}," Supreme airway, LMA Teleflex, 175030"]
["20.4.1.","Vienkartinė, sterili, pagaminta iš PVC ar lygiavertės medžiagos",null,null,null,null,null,"Vienkartinė, sterili, pagaminta iš PVC Žr. „KONFIDENCIALU_Katalogai“ .pdf, psl. 41, 43."]
["20.4.2.","Su reguliuojama pripučiama manžete, elipsės formos",null,null,null,null,null,"Su reguliuojama pripučiama manžete, elipsės formos Žr. „KONFIDENCIALU_Katalogai“ .pdf, psl. 43."]
["20.4.3.","Stabili, neužlinkstantis vamzdelis, specialiu kampu leidžiantis įvesti esant įvairioms galvos pozicijoms",null,null,null,null,null,"Stabili, neužlinkstantis vamzdelis, specialiu kampu leidžiantis įvesti esant įvairioms galvos pozicijoms Žr. „KONFIDENCIALU_Katalogai“ .pdf, psl. 43."]
["20.4.4.","2 angų technologija, stemplinė ir orofaringinė anga",null,null,null,null,null,"2 angų technologija, stemplinė ir orofaringinė angaŽr. „KONFIDENCIALU_Katalogai“ .pdf, psl. 42."]
["20.4.5.","Integruotas sukandimo blokatorius",null,null,null,null,null,"Integruotas sukandimo blokatorius  Žr. „KONFIDENCIALU_Katalogai“ .pdf, psl. 43."]
["20.4.6.","Padidinta, išgaubta PVC manžetė pagerintam prigludimui ir hermetiškumui su pertvarėlėmis nuo epigločio užkritimo",null,null,null,null,null,"Padidinta, išgaubta PVC manžetė pagerintam prigludimui ir hermetiškumui su pertvarėlėmis nuo epigločio užkritimo Žr. „KONFIDENCIALU_Katalogai“ .pdf, psl. 41-43."]
["20.5.","Laringinė kaukė. N4",250,"vnt",14.75,{"$f":"IF(ISBLANK(E220),\"\", PRODUCT(C220,E220))","v":3687.5}," Supreme airway, LMA Teleflex, 175040"]
["20.5.1.","Vienkartinė, sterili, pagaminta iš PVC ar lygiavertės medžiagos",null,null,null,null,null,"Vienkartinė, sterili, pagaminta iš PVC Žr. „KONFIDENCIALU_Katalogai“ .pdf, psl. 41, 43."]
["20.5.2.","Su reguliuojama pripučiama manžete, elipsės formos",null,null,null,null,null,"Su reguliuojama pripučiama manžete, elipsės formos Žr. „KONFIDENCIALU_Katalogai“ .pdf, psl. 43."]
["20.5.3.","Stabili, neužlinkstantis vamzdelis, specialiu kampu leidžiantis įvesti esant įvairioms galvos pozicijoms",null,null,null,null,null,"Stabili, neužlinkstantis vamzdelis, specialiu kampu leidžiantis įvesti esant įvairioms galvos pozicijoms Žr. „KONFIDENCIALU_Katalogai“ .pdf, psl. 43."]
["20.5.4.","2 angų technologija, stemplinė ir orofaringinė anga",null,null,null,null,null,"2 angų technologija, stemplinė ir orofaringinė anga Žr. „KONFIDENCIALU_Katalogai“ .pdf, psl. 42."]
["20.5.5.","Integruotas sukandimo blokatorius",null,null,null,null,null,"Integruotas sukandimo blokatorius Žr. „KONFIDENCIALU_Katalogai“ .pdf, psl. 43."]
["20.5.6.","Padidinta, išgaubta PVC manžetė pagerintam prigludimui ir hermetiškumui su pertvarėlėmis nuo epigločio užkritimo",null,null,null,null,null,"Padidinta, išgaubta PVC manžetė pagerintam prigludimui ir hermetiškumui su pertvarėlėmis nuo epigločio užkritimo Žr. „KONFIDENCIALU_Katalogai“ .pdf, psl. 41-43."]
["20.6.","Laringinė kaukė. N5",100,"vnt",14.75,{"$f":"IF(ISBLANK(E227),\"\", PRODUCT(C227,E227))","v":1475}," Supreme airway, LMA Teleflex, 175050"]
["20.6.1.","Vienkartinė, sterili, pagaminta iš PVC ar lygiavertės medžiagos",null,null,null,null,null,"Vienkartinė, sterili, pagaminta iš PVC Žr. „KONFIDENCIALU_Katalogai“ .pdf, psl. 41, 43."]
["20.6.2.","Su reguliuojama pripučiama manžete, elipsės formos",null,null,null,null,null,"Su reguliuojama pripučiama manžete, elipsės formos Žr. „KONFIDENCIALU_Katalogai“ .pdf, psl. 43."]
["20.6.3.","Stabili, neužlinkstantis vamzdelis, specialiu kampu leidžiantis įvesti esant įvairioms galvos pozicijoms",null,null,null,null,null,"Stabili, neužlinkstantis vamzdelis, specialiu kampu leidžiantis įvesti esant įvairioms galvos pozicijoms Žr. „KONFIDENCIALU_Katalogai“ .pdf, psl. 43."]
["20.6.4.","2 angų technologija, stemplinė ir orofaringinė anga",null,null,null,null,null,"2 angų technologija, stemplinė ir orofaringinė anga Žr. „KONFIDENCIALU_Katalogai“ .pdf, psl. 42."]
["20.6.5.","Integruotas sukandimo blokatorius",null,null,null,null,null,"Integruotas sukandimo blokatorius Žr. „KONFIDENCIALU_Katalogai“ .pdf, psl. 43."]
["20.6.6.","Padidinta, išgaubta PVC manžetė pagerintam prigludimui ir hermetiškumui su pertvarėlėmis nuo epigločio užkritimo",null,null,null,null,null,"Padidinta, išgaubta PVC manžetė pagerintam prigludimui ir hermetiškumui su pertvarėlėmis nuo epigločio užkritimo Žr. „KONFIDENCIALU_Katalogai“ .pdf, psl. 41-43."]
[null,null,null,null,"Suma be PVM",{"$f":"IF((COUNT(C192:C233)<>COUNT(F192:F233)),\"\", SUM(F192:F233))","v":9882.5},{"$f":"IF((COUNT(C192:C233)<>COUNT(F192:F233)),\"Neužpildytos visų objektų kainos\", \"\")","v":""}]
[null,null,null,null,"PVM suma",{"$f":"F234*1.05-F234","v":494.125}]
[null,null,null,null,"Suma su PVM",{"$f":"IF(ISBLANK(F235), \"\", SUM(F234:F235))","v":10376.625}]
[]
[]
[]
["21. DALIS","LARINGINĖ KAUKĖ APSUNKINTAI INTUBACIJAI"]
[]
["Tiekėjo pasiūlymas:"]
["Nr.","Pavadinimas","Kiekis","Mato vienetas","Įkainis be PVM, Eur","Suma be PVM, Eur","Siūlomos prekės, pavadinimas, gamintojas, kodas","Tiekėjo siūlomi parametrai ir parametrą pagrindžiantys dokumentai"]
["21.","Laringinė kaukė apsunkintai intubacijai"]
["21.1.","Laringinė kaukė apsunkintai intubacijai. Dydžiai 1; 1,5; 2; 2,5; 3; 4; 5 pasirinktinai",100,"vnt",14.75,{"$f":"IF(ISBLANK(E245),\"\", PRODUCT(C245,E245))","v":1475}," Supreme airway, LMA Teleflex, 1750XX"]
["21.1.1.","Sterili vienkartinė, skaidri pagaminta iš PVC ar lygiavertės medžiagos",null,null,null,null,null,"Sterili, vienkartinė, skaidri, pagaminta iš PVC Žr. „KONFIDENCIALU_Katalogai“ .pdf, psl. 44, 46."]
["21.1.2.","Elipsės formos",null,null,null,null,null,"Elipsės formos Žr. „KONFIDENCIALU_Katalogai“ .pdf, psl. 46."]
["21.1.3.","Stabilus, neužlinkstantis vamzdelis, specialiu kampu leidžiantis įvesti esant įvairioms galvos pozicijoms",null,null,null,null,null,"Stabilus, neužlinkstantis vamzdelis, specialiu kampu leidžiantis įvesti esant įvairioms galvos pozicijoms Žr. „KONFIDENCIALU_Katalogai“ .pdf, psl. 46."]
["21.1.4.","2 angų technologija, su stempline ir orofaringine angomis",null,null,null,null,null,"2 angų technologija, su stempline ir orofaringine anga Žr. „KONFIDENCIALU_Katalogai“ .pdf, psl. 45."]
["21.1.5.","Integruotas sukandimo blokatorius",null,null,null,null,null,"Integruotas sukandimo blokatorius Žr. „KONFIDENCIALU_Katalogai“ .pdf, psl. 46."]
["21.1.6.","Laikiklis kaukės pozicijos pakeitimui ir/ar fiksavimui",null,null,null,null,null,"Laikiklis kaukės pozicijos pakeitimui ir/ar fiksavimui Žr. „KONFIDENCIALU_Katalogai“ .pdf, psl. 46."]
["21.1.7.","Padidinta, išgaubta PVC manžetė pagerintam prigludimui ir hermetiškumui su pertvarėlėmis nuo epigločio užkritimo",null,null,null,null,null,"Padidinta, išgaubta PVC manžetė pageriantam, prigludimui ir hermetiškumui su pertvarėlėmis nuo epigločio užkritimo Žr. „KONFIDENCIALU_Katalogai“ .pdf, psl. 46, 47."]
[null,null,null,null,"Suma be PVM",{"$f":"IF((COUNT(C245:C252)<>COUNT(F245:F252)),\"\", SUM(F245:F252))","v":1475},{"$f":"IF((COUNT(C245:C252)<>COUNT(F245:F252)),\"Neužpildytos visų objektų kainos\", \"\")","v":""}]
[null,null,null,null,"PVM suma",{"$f":"F253*1.05-F253","v":73.75}]
[null,null,null,null,"Suma su PVM",{"$f":"IF(ISBLANK(F254), \"\", SUM(F253:F254))","v":1548.75}]
[]
[]
[]
[]
[]
[]
["24. DALIS","KAUKĖ KONCENTRUOTO DEGUONIES"]
[]
["Tiekėjo pasiūlymas:"]
["Nr.","Pavadinimas","Kiekis","Mato vienetas","Įkainis be PVM, Eur","Suma be PVM, Eur","Siūlomos prekės, pavadinimas, gamintojas, kodas","Tiekėjo siūlomi parametrai ir parametrą pagrindžiantys dokumentai"]
["24.","Kaukė koncentruoto deguonies"]
["24.1.","Aukštos koncentracijos deguonies kaukė su rezervuaru suaugusiems",2000,"vnt",0.82250000000000001,{"$f":"IF(ISBLANK(E267),\"\", PRODUCT(C267,E267))","v":1645},"High concentration mask, Plastimed, 130110"]
["24.1.1.","Vienkartinės, sterilios. Gaminio sudėtyje nėra latekso",null,null,null,null,null,"Vienkartinės, sterilios. Gaminio sudėtyje nėra latekso Žr. „KONFIDENCIALU_Katalogai“ .pdf, psl. 57."]
["24.1.2.","Kaukė tvirtinama juostele (gumele), kuri kaukę ant veido fiksuoja hermetiškai",null,null,null,null,null,"Kaukė tvirtinama juostele (gumele), kuri kaukę ant veido fiksuoja hermetiškai Žr. „KONFIDENCIALU_Katalogai“ .pdf, psl. 59."]
["24.1.3.","Kaukės kraštai priglundantys prie veido. Korpusas iš standžios ir skaidrios medžiagos",null,null,null,null,null,"Kaukės kraštai standžios ir skaidrios medžiagos Žr. „KONFIDENCIALU_Katalogai“ .pdf, psl. 59."]
["24.1.4.","Deguonies vamzdelis  ne mažiau 2m su konektoriais galuose",null,null,null,null,null,"Deguonies vamzdelis  2m su konektoriais galuose Žr. „KONFIDENCIALU_Katalogai“ .pdf, psl. 59."]
["24.1.5.","Su integruotu nosies fiksatoriumi (spaustuku)",null,null,null,null,null,"Su integruotu integruotu nosies fiksatoriumi (spaustuku) Žr. „KONFIDENCIALU_Katalogai“ .pdf, psl. 57."]
["24.1.6.","Su 1 - 1,5 ltr. talpos permatomu rezervuaru",null,null,null,null,null,"Su 1,5 ltr. talpos permatomu rezervuaru Žr. „KONFIDENCIALU_Katalogai“ .pdf, psl. 59."]
["24.2.","Aukštos koncentracijos deguonies kaukė su rezervuaru pediatrinė",100,"vnt",0.83499999999999996,{"$f":"IF(ISBLANK(E274),\"\", PRODUCT(C274,E274))","v":83.5},"High concentration mask, Plastimed, 130111"]
["24.2.1.","Vienkartinės, sterilios. Gaminio sudėtyje nėra latekso",null,null,null,null,null,"Vienkartinės, sterilios. Gaminio sudėtyje nėra latekso Žr. „KONFIDENCIALU_Katalogai“ .pdf, psl. 57."]
["24.2.2.","Kaukė tvirtinama juostele (gumele), kuri kaukę ant veido fiksuoja hermetiškai",null,null,null,null,null,"Kaukė tvirtinama juostele (gumele), kuri kaukę ant veido fiksuoja hermetiškai Žr. „KONFIDENCIALU_Katalogai“ .pdf, psl. 59."]
["24.2.3.","Kaukės kraštai priglundantys prie veido. Korpusas iš standžios ir skaidrios medžiagos",null,null,null,null,null,"Kaukės kraštai priglundantys prie veido. Korpusas iš standžios ir skaidrios medžiagos Žr. „KONFIDENCIALU_Katalogai“ .pdf, psl. 59."]
["24.2.4.","Deguonies vamzdelis ne mažiau 2m su konektoriais galuose",null,null,null,null,null,"Deguonies vamzdelis  2m su konektoriais galuose Žr. „KONFIDENCIALU_Katalogai“ .pdf, psl. 59."]
["24.2.5.","Su integruotu nosies fiksatoriumi (spaustuku)",null,null,null,null,null,"Su integruotu nosies fiksatoriumi (spaustuku) Žr. „KONFIDENCIALU_Katalogai“ .pdf, psl. 57."]
["24.2.6.","Su 1 - 1,5 ltr. talpos permatomu rezervuaru",null,null,null,null,null,"Su 1,5 ltr. talpos permatomu rezervuaru Žr. „KONFIDENCIALU_Katalogai“ .pdf, psl. 59."]
[null,null,null,null,"Suma be PVM",{"$f":"IF((COUNT(C267:C280)<>COUNT(F267:F280)),\"\", SUM(F267:F280))","v":1728.5},{"$f":"IF((COUNT(C267:C280)<>COUNT(F267:F280)),\"Neužpildytos visų objektų kainos\", \"\")","v":""}]
[null,null,null,null,"PVM suma",{"$f":"F281*1.05-F281","v":86.425000000000196}]
[null,null,null,null,"Suma su PVM",{"$f":"IF(ISBLANK(F282), \"\", SUM(F281:F282))","v":1814.925}]
[]
[]
[]
[]
["34. DALIS","REGULIATORIUS SKYSČIO  SRAUTO"]
[]
["Tiekėjo pasiūlymas:"]
["Nr.","Pavadinimas","Kiekis","Mato vienetas","Įkainis be PVM, Eur","Suma be PVM, Eur","Siūlomos prekės, pavadinimas, gamintojas, kodas","Tiekėjo siūlomi parametrai ir parametrą pagrindžiantys dokumentai"]
["34.","Reguliatorius skysčio  srauto"]
["34.1.","Reguliatorius skysčio  srauto",200,"vnt",1.6,{"$f":"IF(ISBLANK(E293),\"\", PRODUCT(C293,E293))","v":320},"B-Flow Flow Regulator\nWith I.V. Infusion Set, Bicakcilar Global Tibbi Urunler Sanayi ve Ticaret A.S., 107 0003 1"]
["34.1.1.","Gradacijos skalė 5-250ml/h",null,null,null,null,null,"Gradacijos skalė 5-400ml/h Žr. „KONFIDENCIALU_Katalogai“ .pdf, psl. 66."]
["34.1.2.","Įkomponuotas į 150cm (± 10cm) ilgio infuzinę sistemą, turinčią spaustuką infuzijai stabdyti bei Luer Lock tipo konektorių",null,null,null,null,null,"Įkomponuotas į 150cm ilgio infuzinę sistemą, turinčią spaustuką infuzijai stabdyti bei Luer Lock tipo konektorių                                   Žr. „KONFIDENCIALU_Katalogai“ .pdf, psl. 66."]
[null,null,null,null,"Suma be PVM",{"$f":"IF((COUNT(C293:C295)<>COUNT(F293:F295)),\"\", SUM(F293:F295))","v":320},{"$f":"IF((COUNT(C293:C295)<>COUNT(F293:F295)),\"Neužpildytos visų objektų kainos\", \"\")","v":""}]
[null,null,null,null,"PVM suma",16]
[null,null,null,null,"Suma su PVM",{"$f":"IF(ISBLANK(F297), \"\", SUM(F296:F297))","v":336}]
[]
[]
[]
["38. DALIS","PRAILGINO LINIJA PRITAIKYTA NAUDOTI SU \"ULRICH MEDICAL CT MOTION XD8000 AUTOMATINIU ŠVIRKŠTU"]
[]
["Tiekėjo pasiūlymas:"]
["Nr.","Pavadinimas","Kiekis","Mato vienetas","Įkainis be PVM, Eur","Suma be PVM, Eur","Siūlomos prekės, pavadinimas, gamintojas, kodas","Tiekėjo siūlomi parametrai ir parametrą pagrindžiantys dokumentai"]
["38.","Prailgino linija pritaikyta naudoti su \"Ulrich Medical CT motion XD8000 automatiniu švirkštu"]
["38.1.","Prailgino linija pritaikyta naudoti su \"Ulrich Medical CT motion XD8000 automatiniu švirkštu",6000,"vnt",2.5985,{"$f":"IF(ISBLANK(E307),\"\", PRODUCT(C307,E307))","v":15591},"Disposable Connector tube, Unionmed, WLU250"]
["38.1.1.","Vienkartinė, sterili, be latekso",null,null,null,null,null,"Vienkartinė, sterili, be latekso Žr. „KONFIDENCIALU_Katalogai“ .pdf, psl. 75, 77."]
["38.1.2.","Su dviem apsauginiais vožtuvais",null,null,null,null,null,"Su dviem apsauginiais vožtuvais Žr. „KONFIDENCIALU_Katalogai“ .pdf, psl. 75."]
["38.1.3.","Ilgis 250 cm (± 1 cm)",null,null,null,null,null,"Ilgis 250 cm  Žr. „KONFIDENCIALU_Katalogai“ .pdf, psl. 74."]
["38.1.4.","Sistemos užpildymo tūris 1 metrui linijos 5 ml (galima paklaida ne daugiau 10 %)",null,null,null,null,null,"Sistemos užpildymo tūris 1 metrui linijos 5 ml  Žr. „KONFIDENCIALU_Katalogai“ .pdf, psl. 77."]
["38.1.5.","Maksimalus atlaikomas spaudimas ne mažiau 20 barų",null,null,null,null,null,"Maksimalus atlaikomas spaudimas 24 barai Žr. „KONFIDENCIALU_Katalogai“ .pdf, psl. 75."]
["38.1.6.","Gamintojo arba nepriklausomos laboratorijos patvirtinimas (pažyma),kad siūlomos linijos išbandytos ir tinka su nurodyto tipo švirkštu",null,null,null,null,null,"Gamintojo  patvirtinimas (pažyma),kad siūlomos linijos išbandytos ir tinka su nurodyto tipo švirkštu Žr. „KONFIDENCIALU_Katalogai“ .pdf, psl. 76."]
[null,null,null,null,"Suma be PVM",{"$f":"IF((COUNT(C307:C313)<>COUNT(F307:F313)),\"\", SUM(F307:F313))","v":15591},{"$f":"IF((COUNT(C307:C313)<>COUNT(F307:F313)),\"Neužpildytos visų objektų kainos\", \"\")","v":""}]
[null,null,null,null,"PVM suma",{"$f":"F314*1.05-F314","v":779.55000000000098}]
[null,null,null,null,"Suma su PVM",{"$f":"IF(ISBLANK(F315), \"\", SUM(F314:F315))","v":16370.55}]
[]
[]
[]
["41. DALIS","ATSIURBĖJAI SEILIŲ"]
[]
["Tiekėjo pasiūlymas:"]
["Nr.","Pavadinimas","Kiekis","Mato vienetas","Įkainis be PVM, Eur","Suma be PVM, Eur","Siūlomos prekės, pavadinimas, gamintojas, kodas","Tiekėjo siūlomi parametrai ir parametrą pagrindžiantys dokumentai"]
["41.","Atsiurbėjai seilių"]
["41.1.","Atsiurbėjai seilių",15000,"vnt",2.8000000000000001E-2,{"$f":"IF(ISBLANK(E325),\"\", PRODUCT(C325,E325))","v":420},"Seilių atsiurbėjai, Akzenta"]
["41.1.1.","Antgalis nenusimaunantis",null,null,null,null,null,"Antgalis nenusimaunantis Žr. „KONFIDENCIALU_Katalogai“ .pdf, psl. 78."]
["41.1.2.","Odontologams. Nesterilūs, plastikiniai ar lygiavertės medžiagos su metaline juostele, lankstūs.",null,null,null,null,null,"Odontologams, nesterilūs, plastikiniai su metaline juostele, lankstūs. 78."]
[null,null,null,null,"Suma be PVM",{"$f":"IF((COUNT(C325:C327)<>COUNT(F325:F327)),\"\", SUM(F325:F327))","v":420},{"$f":"IF((COUNT(C325:C327)<>COUNT(F325:F327)),\"Neužpildytos visų objektų kainos\", \"\")","v":""}]
[null,null,null,null,"PVM suma",21]
[null,null,null,null,"Suma su PVM",{"$f":"IF(ISBLANK(F329), \"\", SUM(F328:F329))","v":441}]
[]
[]
["45. DALIS","RINKINYS ATSIURBIMO IŠ TRACHĖJOS"]
[]
["Tiekėjo pasiūlymas:"]
["Nr.","Pavadinimas","Kiekis","Mato vienetas","Įkainis be PVM, Eur","Suma be PVM, Eur","Siūlomos prekės, pavadinimas, gamintojas, kodas","Tiekėjo siūlomi parametrai ir parametrą pagrindžiantys dokumentai"]
["45.","Rinkinys atsiurbimo iš trachėjos"]
["45.1.","Rinkinys atsiurbimo iš trachėjos",800,"vnt",0.90200000000000002,{"$f":"IF(ISBLANK(E338),\"\", PRODUCT(C338,E338))","v":721.6},"Trachea Suction Set, Bicakcilar Global Tibbi Urunler Sanayi ve Ticaret A.S., 187 2201 1"]
["45.1.1.","Skirtas atsiurbimui iš trachėjos ir sekreto iš bronchų surinkimui",null,null,null,null,null,"Skirtas atsiurbimui iš trachėjos ir sekreto iš bronchų surinkimui        Žr. „KONFIDENCIALU_Katalogai“ .pdf, psl. 79, 80."]
["45.1.2.","Sudėtis: rezervuaras surinkti, užkimštas kamščiu",null,null,null,null,null,"Sudėtis: rezervuaras surinkti, užkimštas kamščiu                            Žr. „KONFIDENCIALU_Katalogai“ .pdf, psl. 79, 80."]
["45.1.3.","Du vamzdeliai, vienas iš jų su piršto kontrole ir skirtingo tipo jungtys - viena vyriška, kitas vamzdelis moteriška jungtis",null,null,null,null,null,"Du vamzdeliai, vienas iš jų su piršto kontrole ir skirtingo tipo jungtys - viena vyriška, kitas vamzdelis moteriška jungtis                                    Žr. „KONFIDENCIALU_Katalogai“ .pdf, psl. 79, 80."]
["45.1.4.","Vieta paciento vardui užrašyti",null,null,null,null,null,"Vieta paciento vardui užrašyti                    Žr. „KONFIDENCIALU_Katalogai“ .pdf, psl. 79, 80."]
["45.1.5.","Sterilus, individualiam įpakavime",null,null,null,null,null,"Sterilus, individualiam įpakavime             Žr. „KONFIDENCIALU_Katalogai“ .pdf, psl. 79, 80."]
[null,null,null,null,"Suma be PVM",{"$f":"IF((COUNT(C338:C343)<>COUNT(F338:F343)),\"\", SUM(F338:F343))","v":721.6},{"$f":"IF((COUNT(C338:C343)<>COUNT(F338:F343)),\"Neužpildytos visų objektų kainos\", \"\")","v":""}]
[null,null,null,null,"PVM suma",36.08]
[null,null,null,null,"Suma su PVM",{"$f":"IF(ISBLANK(F345), \"\", SUM(F344:F345))","v":757.68}]
[]
[]
[]
["46. DALIS","ATSIURBĖJAS GLEIVIŲ"]
[]
["Tiekėjo pasiūlymas:"]
["Nr.","Pavadinimas","Kiekis","Mato vienetas","Įkainis be PVM, Eur","Suma be PVM, Eur","Siūlomos prekės, pavadinimas, gamintojas, kodas","Tiekėjo siūlomi parametrai ir parametrą pagrindžiantys dokumentai"]
["46.","Atsiurbėjas gleivių"]
["46.1.","Atsiurbėjas gleivių CH/Fr10",50,"vnt",0.31,{"$f":"IF(ISBLANK(E355),\"\", PRODUCT(C355,E355))","v":15.5},"Ningbo Greetmed Medical Instruments Co Ltd, Kinija, GT017-200"]
["46.1.1.","Vienkartinis. Sterilus išplovų surinkėjas bronchoskopavimui su antgaliu",null,null,null,null,null,"Vienkartinis. Sterilus išplovų surinkėjas bronchoskopavimui su antgaliu                                            Žr. „KONFIDENCIALU_Katalogai“ .pdf, psl. 81."]
["46.1.2.","30ml (± 5 ml) talpa",null,null,null,null,null,"25ml talpa Žr. „KONFIDENCIALU_Katalogai“ .pdf, psl. 81.                                           "]
["46.1.3.","Luer lock tipo jungtis",null,null,null,null,null,"Luer lock tipo jungtis Žr. „KONFIDENCIALU_Katalogai“ .pdf, psl. 81."]
[null,null,null,null,"Suma be PVM",{"$f":"IF((COUNT(C355:C358)<>COUNT(F355:F358)),\"\", SUM(F355:F358))","v":15.5},{"$f":"IF((COUNT(C355:C358)<>COUNT(F355:F358)),\"Neužpildytos visų objektų kainos\", \"\")","v":""}]
[null,null,null,null,"PVM suma",0.77500000000000002]
[null,null,null,null,"Suma su PVM",{"$f":"IF(ISBLANK(F360), \"\", SUM(F359:F360))","v":16.274999999999999}]
[]
[]
[]
["47. DALIS","KAMŠTELIAI INTRAVENINIAM KATERIUI"]
[]
["Tiekėjo pasiūlymas:"]
["Nr.","Pavadinimas","Kiekis","Mato vienetas","Įkainis be PVM, Eur","Suma be PVM, Eur","Siūlomos prekės, pavadinimas, gamintojas, kodas","Tiekėjo siūlomi parametrai ir parametrą pagrindžiantys dokumentai"]
["47.","Kamšteliai intraveniniam kateriui"]
["47.1.","Kamšteliai intraveniniam kateriui",23000,"vnt",2.0799999999999999E-2,{"$f":"IF(ISBLANK(E370),\"\", PRODUCT(C370,E370))","v":478.4},"Luer cap, Harsoria Healthcare Pvt.Ltd. "]
[null,null,null,null,"Suma be PVM",{"$f":"IF(F370=\"\",\"\",SUM(F370:F370))","v":478.4},{"$f":"IF(F370=\"\",\"Neužpildytos visos objektų kainos\",\"\")","v":""}]
[null,null,null,null,"PVM suma",23.92]
[null,null,null,null,"Suma su PVM",{"$f":"IF(ISBLANK(F372), \"\", SUM(F371:F372))","v":502.32}]
[]
[]
[]
["48. DALIS","KAMŠTUKAI FOLEY TIPO KATETERIUI UŽKIMŠTI"]
[]
["Tiekėjo pasiūlymas:"]
["Nr.","Pavadinimas","Kiekis","Mato vienetas","Įkainis be PVM, Eur","Suma be PVM, Eur","Siūlomos prekės, pavadinimas, gamintojas, kodas","Tiekėjo siūlomi parametrai ir parametrą pagrindžiantys dokumentai"]
["48.","Kamštukai Foley tipo kateteriui užkimšti"]
["48.1.","Kamštukai Foley tipo kateteriui užkimšti",500,"vnt",0.1,{"$f":"IF(ISBLANK(E382),\"\", PRODUCT(C382,E382))","v":50},"Spigot for Catheters, DAHLHAUSEN Medizin-Technik, 56.000.13.630"]
["48.1.1.","Vienkartiniai, sterilūs",null,null,null,null,null,"Vienkartiniai, sterilūs Žr. „KONFIDENCIALU_Katalogai“ .pdf, psl. 84."]
["48.1.2.","Foley kateterio galui užkimšti vietoje šlapimo maišelio",null,null,null,null,null,"Foley kateterio galui užkimšti vietoje šlapimo maišelio                    Žr. „KONFIDENCIALU_Katalogai“ .pdf, psl. 84."]
[null,null,null,null,"Suma be PVM",{"$f":"IF((COUNT(C382:C384)<>COUNT(F382:F384)),\"\", SUM(F382:F384))","v":50},{"$f":"IF((COUNT(C382:C384)<>COUNT(F382:F384)),\"Neužpildytos visų objektų kainos\", \"\")","v":""}]
[null,null,null,null,"PVM suma",2.5]
[null,null,null,null,"Suma su PVM",{"$f":"IF(ISBLANK(F386), \"\", SUM(F385:F386))","v":52.5}]
[]
[]
[]
["87. DALIS","TULŽIES LATAKŲ STENTAI"]
[]
["Tiekėjo pasiūlymas:"]
["Nr.","Pavadinimas","Kiekis","Mato vienetas","Įkainis be PVM, Eur","Suma be PVM, Eur","Siūlomos prekės, pavadinimas, gamintojas, kodas","Tiekėjo siūlomi parametrai ir parametrą pagrindžiantys dokumentai"]
["87.","Tulžies latakų stentai"]
["87.1.","Tulžies latakų stentas 10 Fr.",20,"vnt",16.8,{"$f":"IF(ISBLANK(E396),\"\", PRODUCT(C396,E396))","v":336},"Biliary stents, Mar Flow, BSS 10/5"]
["87.1.1.","50mm (± 2mm) ilgio",null,null,null,null,null,"50mm ilgio  Žr. „KONFIDENCIALU_Katalogai“ .pdf, psl. 95."]
["87.2.","Tulžies latakų stentas 10 Fr.",20,"vnt",16.8,{"$f":"IF(ISBLANK(E398),\"\", PRODUCT(C398,E398))","v":336},"Biliary stents, Mar Flow, BSS  10/7"]
["87.2.1.","70mm (± 2mm) ilgio",null,null,null,null,null,"70mm ilgio Žr. „KONFIDENCIALU_Katalogai“ .pdf, psl. 95."]
["87.3.","Tulžies latakų stentas 10 Fr.",20,"vnt",16.8,{"$f":"IF(ISBLANK(E400),\"\", PRODUCT(C400,E400))","v":336},"Biliary stents, Mar Flow, BSS  10/15"]
["87.3.1.","150mm (± 2mm) ilgio",null,null,null,null,null,"150mm ilgio Žr. „KONFIDENCIALU_Katalogai“ .pdf, psl. 95."]
[null,null,null,null,"Suma be PVM",{"$f":"IF((COUNT(C396:C401)<>COUNT(F396:F401)),\"\", SUM(F396:F401))","v":1008},{"$f":"IF((COUNT(C396:C401)<>COUNT(F396:F401)),\"Neužpildytos visų objektų kainos\", \"\")","v":""}]
[null,null,null,null,"PVM suma",{"$f":"F402*0.05","v":50.4}]
[null,null,null,null,"Suma su PVM",{"$f":"IF(ISBLANK(F403), \"\", SUM(F402:F403))","v":1058.4000000000001}]
[]
[]
[]
["88. DALIS","PANKREATITINIAI STENTAI"]
[]
["Tiekėjo pasiūlymas:"]
["Nr.","Pavadinimas","Kiekis","Mato vienetas","Įkainis be PVM, Eur","Suma be PVM, Eur","Siūlomos prekės, pavadinimas, gamintojas, kodas","Tiekėjo siūlomi parametrai ir parametrą pagrindžiantys dokumentai"]
["88.","Pankreatitiniai stentai"]
["88.1.","Pankreatitinis stentas 7Fr",20,"vnt",17.899999999999999,{"$f":"IF(ISBLANK(E413),\"\", PRODUCT(C413,E413))","v":358},"Pancreatic stents, Mar Flow, PS-C 7/3"]
["88.1.1.","3cm (± 2mm)",null,null,null,null,null,"3cm Žr. „KONFIDENCIALU_Katalogai“ .pdf, psl. 96."]
["88.2.","Pankreatitinis stentas 7Fr",20,"vnt",17.899999999999999,{"$f":"IF(ISBLANK(E415),\"\", PRODUCT(C415,E415))","v":358},"Pancreatic stents, Mar Flow, PS-C 7/5"]
["88.2.1.","5cm (± 2mm)",null,null,null,null,null,"5cm Žr. „KONFIDENCIALU_Katalogai“ .pdf, psl. 96."]
[null,null,null,null,"Suma be PVM",{"$f":"IF((COUNT(C413:C416)<>COUNT(F413:F416)),\"\", SUM(F413:F416))","v":716},{"$f":"IF((COUNT(C413:C416)<>COUNT(F413:F416)),\"Neužpildytos visų objektų kainos\", \"\")","v":""}]
[null,null,null,null,"PVM suma",{"$f":"F417*0.05","v":35.799999999999997}]
[null,null,null,null,"Suma su PVM",{"$f":"IF(ISBLANK(F418), \"\", SUM(F417:F418))","v":751.8}]
[]
[]
[]
["94. DALIS","KOMBINUOTI KVĖPAVIMO FILTRAI"]
[]
["Tiekėjo pasiūlymas:"]
["Nr.","Pavadinimas","Kiekis","Mato vienetas","Įkainis be PVM, Eur","Suma be PVM, Eur","Siūlomos prekės, pavadinimas, gamintojas, kodas","Tiekėjo siūlomi parametrai ir parametrą pagrindžiantys dokumentai"]
["94.","Kombinuoti kvėpavimo filtrai"]
["94.1.","Filtras kvėpavimo suaugusiems",14000,"vnt.",0.51249999999999996,{"$f":"IF(ISBLANK(E428),\"\", PRODUCT(C428,E428))","v":7175},"Bacterial-viral HME filters, Altera Meditera, AL-08021"]
["94.1.1.","Kliniškai švarūs, vienkartiniai, supakuoti po 1 vnt., gaminio sudėtyje nėra latekso",null,null,null,null,null,"Kliniškai švarūs, vienkartiniai, supakuoti po 1 vnt., gaminio sudėtyje nėra latekso Žr. „KONFIDENCIALU_Katalogai“ .pdf, psl. 97, 98, 100."]
["94.1.2.","Elektrostatinis filtro veikimo principas",null,null,null,null,null,"Elektrostatinis filtro veikimo principas Žr. „KONFIDENCIALU_Katalogai“ .pdf, psl. 99."]
["94.1.3.","Su Luer Lock tipo jungtimi CO2 monitoravimui. Monitoringo linijai skirtos angos dangtelis pritvirtintas prie Luer Lock tipo angos",null,null,null,null,null,"Su Luer Lock tipo jungtimi CO2 monitoravimui. Monitoringo linijai skirtos angos dangtelis pritvirtintas prie Luer Lock tipo angos  Žr. „KONFIDENCIALU_Katalogai“ .pdf, psl. 97."]
["94.1.4.","Testuotas su virusais ir bakterijomis nepriklausomoje ar gamintojo laboratorijoje pagal tarptautines metodikas 24 val. Efektyvumas >99,99%",null,null,null,null,null,"Testuotas su virusais ir bakterijomis nepriklausomoje laboratorijoje pagal tarptautines metodikas 24 val. Efektyvumas 99,9999%  Žr. „KONFIDENCIALU_Katalogai“ .pdf, psl. 97, 101-121."]
["94.1.5.","Filtro parametrai: tūris ne daugiau 60ml, pasipriešinimas- nedaugiau kaip 1,0cm H2O kai dujų srautas 30l/min, drėgmės gražinimas -ne mažiau kaip 30,6mg H2O/l, minimalus/maksimalus kvėpimo tūris 150ml - 1500ml",null,null,null,null,null,"Filtro parametrai: tūris 55ml, pasipriešinimas-  0,65cm H2O kai dujų srautas 30l/min, drėgmės gražinimas -  35,5mg H2O/l, minimalus/maksimalus kvėpimo tūris 150ml - 1500ml  Žr. „KONFIDENCIALU_Katalogai“ .pdf, psl. 97."]
[null,null,null,null,"Suma be PVM",{"$f":"IF((COUNT(C428:C433)<>COUNT(F428:F433)),\"\", SUM(F428:F433))","v":7175},{"$f":"IF((COUNT(C428:C433)<>COUNT(F428:F433)),\"Neužpildytos visų objektų kainos\", \"\")","v":""}]
[null,null,null,null,"PVM suma",{"$f":"F434*1.05-F434","v":358.75}]
[null,null,null,null,"Suma su PVM",{"$f":"IF(ISBLANK(F435), \"\", SUM(F434:F435))","v":7533.75}]
[]
[]
[]
["98. DALIS","SISTEMA KVĖPAVIMO VAIKAMS"]
[]
["Tiekėjo pasiūlymas:"]
["Nr.","Pavadinimas","Kiekis","Mato vienetas","Įkainis be PVM, Eur","Suma be PVM, Eur","Siūlomos prekės, pavadinimas, gamintojas, kodas","Tiekėjo siūlomi parametrai ir parametrą pagrindžiantys dokumentai"]
["98.","Sistema kvėpavimo vaikams"]
["98.1.","Sistema kvėpavimo vaikams",200,"vnt.",2.0499999999999998,{"$f":"IF(ISBLANK(E445),\"\", PRODUCT(C445,E445))","v":410},"Anesthesia Circuits, Altera Meditera, AL-1600"]
["98.1.1.","Vienkartinės, kliniškai švarios, supakuotos po 1 vienetą",null,null,null,null,null,"Vienkartinės, kliniškai švarios, supakuotos po 1 vienetą Žr. „KONFIDENCIALU_Katalogai“ .pdf, psl. 178, 180, 182, 183."]
["98.1.2.","Gaminio sudėtyje nėra latekso",null,null,null,null,null,"Gaminio sudėtyje nėra latekso Žr. „KONFIDENCIALU_Katalogai“ .pdf, psl. 182."]
["98.1.3.","Visos jungtys kūginės, lengvai fiksuojama norimoje padėtyje",null,null,null,null,null,"Visos jungtys kūginės, lengvai fiksuojama norimoje padėtyje Žr. „KONFIDENCIALU_Katalogai“ .pdf, psl. 179."]
["98.1.4.","Gaminio pakuotė lengvai praplėšiama rankomis, nenaudojant pašalinių daiktų",null,null,null,null,null,"Gaminio pakuotė lengvai praplėšiama rankomis, nenaudojant pašalinių daiktų Žr. „KONFIDENCIALU_Katalogai“ .pdf, psl. 180."]
["98.1.5.","1.5m - 1.6m ilgio, 15mm diametro",null,null,null,null,null,"1.5m  ilgio, 15mm diametro Žr. „KONFIDENCIALU_Katalogai“ .pdf, psl. 181."]
["98.1.6.","Sistema sudaryta iš 2 vamzdelių, sujungtų Y formos jungtimi, alkūninės jungties paciento pusėje su Luer Lock tipo anga, kuri skirta CO2 matavimo linijos pajungimui, Yjungties diametras ne daugiau 15mm",null,null,null,null,null,"Sistema sudaryta iš 2 vamzdelių, sujungtų Y formos jungtimi, alkūninės jungties paciento pusėje su Luer Lock tipo anga, kuri skirta CO2 matavimo linijos pajungimui, Y bjungties diametras 15mm Žr. „KONFIDENCIALU_Katalogai“ .pdf, psl. 180, 181."]
["98.1.7.","Jungtys kūginės: aparato pusėje 22F, paciento- 22M/15F",null,null,null,null,null,"Jungtys kūginės: aparato pusėje 22F, paciento- 22M/15F Žr. „KONFIDENCIALU_Katalogai“ .pdf, psl. 183."]
[null,null,null,null,"Suma be PVM",{"$f":"IF((COUNT(C445:C452)<>COUNT(F445:F452)),\"\", SUM(F445:F452))","v":410},{"$f":"IF((COUNT(C445:C452)<>COUNT(F445:F452)),\"Neužpildytos visų objektų kainos\", \"\")","v":""}]
[null,null,null,null,"PVM suma",{"$f":"F453*1.05-F453","v":20.5}]
[null,null,null,null,"Suma su PVM",{"$f":"IF(ISBLANK(F454), \"\", SUM(F453:F454))","v":430.5}]

{"sheet":"Subtiekėjai ir priedai","index":1,"n_rows":83,"n_cols":11,"rows_kept":83,"cut":false,"hidden":false,"merged":[[14,0,14,1],[13,0,13,1],[12,0,12,1],[14,2,14,4],[13,2,13,4],[12,2,12,4],[1,0,2,10],[16,0,16,9],[7,5,7,7],[6,5,6,7],[7,8,7,9],[6,8,6,9],[7,0,7,1],[6,0,6,1],[7,2,7,4],[6,2,6,4],[5,2,5,4],[5,8,5,9],[4,8,4,9],[9,0,9,10],[11,8,11,9],[11,5,11,7],[4,5,4,7],[4,2,4,4],[18,0,18,9],[20,7,20,9],[20,1,20,6],[4,0,4,1],[5,5,5,7],[5,0,5,1],[11,2,11,4],[11,0,11,1],[14,5,14,7],[13,5,13,7],[12,5,12,7],[14,8,14,9],[13,8,13,9],[12,8,12,9],[28,7,28,9],[23,7,23,9],[22,7,22,9],[21,7,21,9],[27,7,27,9],[26,7,26,9],[25,7,25,9],[24,7,24,9],[30,0,30,9],[35,4,35,9],[33,4,33,9],[35,0,35,3],[33,0,33,3],[24,1,24,6],[23,1,23,6],[22,1,22,6],[21,1,21,6],[28,1,28,6],[27,1,27,6],[26,1,26,6],[25,1,25,6]]}
[]
["Ūkio subjektai (įskaitant kvazisubtiekėjus - fiziniai asmenys, kuriuos ketinama įdarbinti pirkimo laimėjimo atveju), kurių pajėgumais tiekėjas remiasi, kad atitiktų keliamus kvalifikacijos reikalavimus:"]
[]
[]
["Pavadinimas*",null,"Kodas, adresas",null,null,"Perduodami įsipareigojimai",null,null,"Perduodamų įsipareigojimų dalis nuo visos pirkimo sutarties (Eur arba %)",null,"Kval. Reikalavimo Nr."]
["_",null,"_",null,null,"_",null,null,"_",null,"_"]
[]
[]
[]
["Subtiekėjams / subteikėjams / subrangovams numatomos perduoti veiklos (privaloma nurodyti) ir šių ūkio subjektų pavadinimai (jei žinomi):"]
[]
["Pavadinimas",null,"Kodas, adresas",null,null,"Perduodama veikla*",null,null,"Perduodamos veiklos dalis nuo visos pirkimo sutarties (Eur arba %)"]
["_",null,"_",null,null,"_",null,null,"_"]
[]
[]
[]
[]
[]
["Kartu su pasiūlymu pateikiami šie dokumentai:"]
[]
["Nr.","Dokumento  pavadinimas",null,null,null,null,null,"Dokumentas yra konfidencialus? Taip/Ne"]
[1,"Jungtinės veiklos kopija (jei taikoma)",null,null,null,null,null,"Netaikoma"]
[2,"Europos bendrasis viešųjų pirkimų dokumentas",null,null,null,null,null,"Ne"]
[3,"Subtiekimo sutartis, ketinimų protokolas, preliminarios sutartys ar kiti dokumentai, patvirtinantys, kad laimėjus pirkimą tiekėjui bus prieinami kitų ūkio subjektų ištekliai (jei pasitelkiami kvalifikacijos atitikimui)",null,null,null,null,null,"Nepasitelkiama"]
[4,"Įgaliojimas pasirašyti pasiūlymą",null,null,null,null,null,"Ne"]
[5,"Tiekėjo deklaracija",null,null,null,null,null,"Ne"]
[6,"KONFIDENCIALU_Katalogai",null,null,null,null,null,"Taip"]
[null,"Konfidenciali informacija:  Žr. „KONFIDENCIALU_Katalogai“ .pdf, psl. 29-31, 33-35, 37-40, 49-52, 55, 56,58, 59, 62, 76,77, 99-121, 126-146, 151-171, 174-177, 186-183, 186-189."]
[null,"Pasiūlymas galioja iki 2022-12-05 d."]
[]
["Pasiūlyme nurodyta Prekės kaina, išskyrus jos sudedamąsias dalis, subtiekėjai, taip pat kita informacija, kuri teisės aktų nustatyta tvarka turi būti skelbiama arba kitokiu būdu viešai prieinama visuomenei, nėra laikoma konfidencialia informacija. Konfidencialią informaciją sudaro, visų pirma, komercinė (gamybinė) paslaptis ir konfidencialieji pasiūlymų aspektai. Informacija, kurią viešai skelbti įpareigoja Lietuvos Respublikos įstatymai, negali būti tiekėjo nurodoma kaip konfidenciali, todėl, tiekėjui nurodžius tokią informaciją kaip konfidencialią, perkančioji organizacija turi teisę ją skelbti. Jei tiekėjas nenurodo konfidencialios informacijos, laikoma, kad konfidencialios informacijos tiekėjo pasiūlyme nėra. Vadovaujantis Informacijos viešinimo Centrinėje viešųjų pirkimų informacinėje sistemoje tvarkos aprašu, patvirtintu Viešųjų pirkimų tarnybos direktoriaus 2017 m. birželio 19 d. įsakymu Nr. 1S-91 „Dėl Informacijos viešinimo Centrinėje viešųjų pirkimų informacinėje sistemoje tvarkos aprašo patvirtinimo“, perkančioji organizacija laimėjusio dalyvio pasiūlymą, išskyrus informaciją, kurią tiekėjas nurodė kaip konfidencialią, paskelbs CVP IS."]
[]
[]
["Tiekėjo arba jo įgalioto asmens pareigų pavadinimas:",null,null,null,"Viešųjų pirkimų specialistė"]
[]
["Pasirašančio asmens vardas ir pavardė:",null,null,null,"Dovilė Andrijauskaitė"]
[]
[]
[]
[]
[]
[]
[]
[]
[]
[]
[]
[]
[]
[]
[]
[]
[]
[]
[]
[]
[]
[]
[]
[]
[]
[]
[]
[]
[]
[]
[]
[]
[]
[]
[]
[]
[]
[]
[]
[]
[]
[]
[]
[]
[]
[]
["6885-7 2022-07-17 18:09:47"]